bitfinex/quotes_ETHUSD_20241013
["timestamp","ask_amount","ask_price","bid_price","bid_amount"]
[1728834482088,0.10069572,2447.4,2447.3,0.55]
[1728834482297,0.10069572,2447.4,2447.3,0.589545]
[1728834484503,4.08564,2447.6,2447.4,0.813]
[1728834485402,4.0858,2447.5,2447.4,0.813]
[1728834485608,4.08566,2447.6,2447.5,0.55]
[1728834486103,4.0856,2447.7,2447.5,0.55]
[1728834488116,4.08556,2447.7,2447.5,0.55]
[1728834488520,4.08525,2447.9,2447.5,0.55]
[1728834488729,4.08525,2447.9,2447.4,4.89885]
[1728834488730,4.08524,2447.9,2447.7,0.55]
[1728834489585,4.08523,2447.9,2447.5,0.55]
[1728834489791,4.08531,2447.8,2447.5,0.55]
[1728834490035,4.08515,2447.9,2447.5,0.55]
[1728834490205,4.08546,2447.7,2447.6,1.094895]
[1728834490514,4.08546,2447.7,2447.4,0.813]
[1728834490735,4.08546,2447.7,2447.5,0.55]
[1728834490883,4.08531,2447.8,2447.5,0.55]
[1728834491392,0.197861,2448.0,2447.6,0.813]
[1728834491727,0.197861,2448.0,2447.3,3.52928323]
[1728834491728,0.197861,2448.0,2447.9,4.89228323]
[1728834492028,0.197861,2448.0,2447.9,2.66931132]
[1728834492581,0.197861,2448.0,2447.9,6.75444132]
[1728834492829,0.197861,2448.0,2447.9,2.66931132]
[1728834493319,0.197861,2448.0,2447.9,10.28372455]
[1728834493829,0.29553011,2448.0,2447.9,10.28372455]
[1728834494493,0.197861,2448.0,2447.9,10.28372455]
[1728834495323,0.197861,2448.0,2447.9,6.19859455]
[1728834495695,0.29584758,2448.0,2447.9,10.28372455]
[1728834497007,0.197861,2448.0,2447.9,10.28372455]
[1728834497317,0.29585497,2448.0,2447.9,10.28372455]
[1728834498314,0.29585497,2448.0,2447.9,10.32325955]
[1728834502425,0.197861,2448.0,2447.9,10.32325955]
[1728834504688,0.29456112,2448.0,2447.9,10.32325955]
[1728834506931,4.08398,2448.6,2448.1,5.44285]
[1728834507104,4.08398,2448.6,2448.3,0.55]
[1728834507299,0.09356542,2448.5,2448.3,0.55]
[1728834508513,8.16804,2448.6,2448.3,0.55]
[1728834508725,0.09356542,2448.4,2448.3,0.55]
[1728834508938,4.08376,2448.8,2448.3,4.63446]
[1728834509192,4.08376,2448.8,2448.5,0.55]
[1728834509522,8.16747,2448.8,2448.5,0.55]
[1728834509724,4.08371,2448.8,2448.5,0.55]
[1728834511228,4.08347,2448.9,2448.5,0.55]
[1728834511443,4.08347,2448.9,2448.7,0.55]
[1728834513344,4.08363,2448.8,2448.7,0.63166744]
[1728834513547,4.08363,2448.8,2448.7,0.55]
[1728834514007,4.08413,2448.5,2448.4,1.29210001]
[1728834514209,4.08413,2448.5,2448.4,0.55]
[1728834514405,4.17839704,2448.5,2448.4,0.55]
[1728834514900,4.17839704,2448.5,2448.3,0.41442591]
[1728834514901,0.09426704,2448.5,2448.3,0.55]
[1728834515107,8.16777,2448.7,2448.4,0.54677483]
[1728834515418,4.17816797,2448.6,2448.5,0.55]
[1728834515843,4.08396,2448.6,2448.5,0.55]
[1728834516068,4.17816797,2448.6,2448.5,0.55]
[1728834517019,0.09420797,2448.6,2448.5,0.55]
[1728834517220,0.09420797,2448.6,2448.5,1.10945014]
[1728834519210,4.08363,2448.8,2448.5,1.10945014]
[1728834519605,0.09418581,2448.7,2448.5,1.10945014]
[1728834519805,0.09418581,2448.7,2448.5,1.87245014]
[1728834520048,4.08363,2448.8,2448.5,1.87245014]
[1728834520212,4.08363,2448.8,2448.7,0.55]
[1728834520953,0.8068,2449.0,2448.7,0.55]
[1728834521119,4.08349,2448.9,2448.7,0.55]
[1728834523453,8.16705,2448.9,2448.7,0.55]
[1728834523751,4.08349,2448.9,2448.7,0.55]
[1728834523937,4.08363,2448.8,2448.7,0.55]
[1728834524746,4.08348,2448.9,2448.7,0.55]
[1728834526056,0.09413412,2448.8,2448.7,0.55]
[1728834526766,0.09413412,2448.8,2448.7,1.09354726]
[1728834526925,0.09413412,2448.8,2448.7,0.55]
[1728834527125,4.17776412,2448.8,2448.7,0.55]
[1728834528863,4.17776412,2448.8,2448.5,0.55]
[1728834530531,4.17776412,2448.8,2448.4,0.55]
[1728834530867,4.08396,2448.7,2448.4,0.55]
[1728834531462,4.08406,2448.6,2448.4,0.55]
[1728834531791,0.09433348,2448.5,2448.4,0.55]
[1728834532167,0.09433348,2448.5,2448.4,1.13108866]
[1728834532861,4.08396,2448.7,2448.4,1.13108866]
[1728834533286,0.09433348,2448.6,2448.4,1.13108866]
[1728834533791,0.09433348,2448.5,2448.4,0.55]
[1728834534167,4.08391,2448.7,2448.4,0.55]
[1728834534168,8.1678,2448.7,2448.4,0.55]
[1728834534379,0.09433348,2448.5,2448.4,0.55]
[1728834534671,4.08398,2448.6,2448.4,0.55]
[1728834534862,0.09433348,2448.5,2448.4,0.55]
[1728834535065,0.09433348,2448.5,2448.4,1.2373038]
[1728834535594,4.17846348,2448.5,2448.4,1.2373038]
[1728834535809,4.17846348,2448.5,2448.4,0.55]
[1728834535974,4.08413,2448.5,2448.4,0.55]
[1728834536159,0.09433348,2448.5,2448.4,0.55]
[1728834536399,4.17846348,2448.5,2448.4,0.55]
[1728834537400,0.09433348,2448.5,2448.4,0.55]
[1728834538664,0.09433348,2448.5,2448.4,1.25951483]
[1728834539000,4.17846348,2448.5,2448.4,1.25951483]
[1728834539390,0.09433348,2448.5,2448.4,1.25951483]
[1728834539599,0.09433348,2448.5,2448.4,1.61885403]
[1728834540094,4.17846348,2448.5,2448.4,1.61892529]
[1728834540327,4.17846348,2448.5,2448.4,0.70958609]
[1728834540624,4.17846348,2448.5,2448.2,0.55]
[1728834541791,4.17846348,2448.5,2448.3,1.51653249]
[1728834542488,0.09433348,2448.5,2448.4,1.51653249]
[1728834542751,0.09433348,2448.5,2448.4,2.06653249]
[1728834543064,0.09433348,2448.5,2448.4,8.45256591]
[1728834543241,5.74592326,2449.0,2448.5,0.55]
[1728834543536,5.74592326,2449.0,2448.8,1.51653249]
[1728834543729,5.74592326,2449.0,2448.8,0.55]
[1728834543940,4.08346,2448.9,2448.8,0.55]
[1728834544133,4.08346,2448.9,2448.8,2.06653249]
[1728834544362,0.85355326,2449.0,2448.8,1.72318574]
[1728834544527,0.85355326,2449.1,2448.9,2.06653249]
[1728834544731,1.85064944,2449.1,2449.0,1.51653249]
[1728834545122,5.93379944,2449.1,2449.0,1.51653249]
[1728834545439,5.93379944,2449.1,2449.0,2.06653249]
[1728834545440,1.85064944,2449.1,2449.0,2.06653249]
[1728834545640,5.93377944,2449.1,2449.0,0.55]
[1728834545862,5.93377944,2449.1,2448.9,0.55]
[1728834546067,4.93668326,2449.1,2448.9,0.55]
[1728834546554,0.85355326,2449.1,2448.9,1.11252233]
[1728834546759,1.85068479,2449.1,2448.9,1.11252233]
[1728834547842,0.85355326,2449.1,2448.9,1.11252233]
[1728834548029,1.85054015,2449.1,2448.9,1.11252233]
[1728834548573,4.89205,2449.2,2449.1,0.55]
[1728834548776,4.89205,2449.2,2449.1,0.30646219]
[1728834548944,4.89205,2449.2,2449.1,0.85646219]
[1728834549127,4.89205,2449.2,2449.1,0.55]
[1728834549352,4.89205,2449.2,2449.0,0.55]
[1728834549353,4.89198,2449.2,2449.0,0.55]
[1728834550173,4.08281,2449.3,2449.2,0.55]
[1728834550358,4.08281,2449.3,2449.2,1.07551462]
[1728834550879,4.08259,2449.5,2449.2,1.07551462]
[1728834551086,4.08269,2449.4,2449.2,0.76911951]
[1728834551229,4.08259,2449.5,2449.2,0.76911951]
[1728834551430,4.08259,2449.5,2449.4,0.55]
[1728834551876,4.08313,2449.1,2449.0,1.06424522]
[1728834552168,4.08313,2449.1,2449.0,0.55]
[1728834552482,8.16608,2449.2,2449.0,0.55]
[1728834552644,4.08299,2449.2,2449.0,0.55]
[1728834552844,4.0828,2449.3,2449.0,0.99846376]
[1728834553186,8.1657,2449.3,2449.0,0.99846376]
[1728834553849,4.08313,2449.1,2449.0,0.55]
[1728834555969,4.17483625,2449.1,2449.0,0.55]
[1728834556411,0.09170625,2449.1,2449.0,0.55]
[1728834556617,0.09170625,2449.1,2449.0,4.8379491]
[1728834557117,4.08281,2449.3,2449.0,4.8379491]
[1728834557708,4.17473885,2449.2,2449.0,1.3191]
[1728834558908,0.09169885,2449.2,2449.0,1.3191]
[1728834559295,4.85431,2449.3,2449.0,1.3191]
[1728834559511,0.09169885,2449.1,2449.0,1.3191]
[1728834559711,4.08281,2449.3,2449.0,1.3191]
[1728834560472,0.09169885,2449.2,2449.1,0.58183385]
[1728834560676,0.09169885,2449.2,2449.1,1.13183385]
[1728834560916,4.08281,2449.3,2449.2,0.55]
[1728834561490,4.08281,2449.3,2449.1,0.55]
[1728834562748,0.7715,2449.5,2449.1,0.55]
[1728834562908,4.0828,2449.3,2449.1,1.13180785]
[1728834563108,4.0828,2449.3,2449.1,0.55]
[1728834563760,4.08322,2449.1,2449.0,0.55]
[1728834564646,4.85472,2449.1,2449.0,0.55]
[1728834570274,4.08322,2449.1,2449.0,2.06578529]
[1728834570988,0.09174315,2449.1,2449.0,2.06578529]
[1728834571196,0.09174315,2449.1,2449.0,3.08025293]
[1728834571566,4.08274,2449.4,2449.1,0.55]
[1728834571767,0.09164718,2449.3,2449.2,2.06578529]
[1728834575925,4.08254,2449.5,2449.3,0.55]
[1728834576081,4.08254,2449.5,2449.4,1.51578529]
[1728834576279,4.08254,2449.5,2449.4,2.06578529]
[1728834577308,4.08254,2449.5,2449.4,2.27236382]
[1728834578717,4.0824,2449.6,2449.4,2.27236382]
[1728834578922,4.08246,2449.5,2449.4,2.27236382]
[1728834579790,4.0824,2449.6,2449.5,0.55]
[1728834580101,4.0824,2449.6,2449.5,2.06578529]
[1728834580293,4.0824,2449.6,2449.5,0.77723638]
[1728834582137,4.0824,2449.6,2449.5,2.29302167]
[1728834586110,4.17430552,2449.6,2449.5,2.29302167]
[1728834589359,0.09190552,2449.6,2449.5,2.29302167]
[1728834589865,0.09199405,2449.6,2449.5,2.29302167]
[1728834591649,4.17428405,2449.6,2449.5,0.77723638]
[1728834591851,4.08263,2449.4,2449.3,2.32438529]
[1728834592462,4.17511118,2449.4,2449.3,2.32438529]
[1728834592664,4.17511118,2449.4,2449.0,1.10524487]
[1728834592665,4.17511118,2449.4,2449.2,1.51578529]
[1728834593031,4.08279,2449.3,2449.2,1.51578529]
[1728834593355,4.08313,2449.1,2449.0,0.24756764]
[1728834593865,4.08313,2449.1,2449.0,1.76335293]
[1728834594163,4.08313,2449.1,2449.0,0.24756764]
[1728834594368,4.17546359,2449.1,2449.0,0.24756764]
[1728834594525,0.09233359,2449.1,2449.0,1.76335293]
[1728834594732,0.09233359,2449.1,2449.0,3.02223769]
[1728834595066,4.08296,2449.2,2449.1,0.55]
[1728834595370,4.08296,2449.2,2449.1,2.48182194]
[1728834595673,4.91158,2449.4,2449.1,2.48182194]
[1728834595881,8.1654,2449.4,2449.2,1.51578529]
[1728834596034,4.08268,2449.4,2449.3,2.06578529]
[1728834596228,4.0824,2449.6,2449.4,0.55]
[1728834596438,4.0824,2449.6,2449.5,2.06578529]
[1728834600867,4.0824,2449.6,2449.5,0.55]
[1728834601199,4.17462289,2449.6,2449.5,0.55]
[1728834603389,4.17462289,2449.6,2449.4,0.55]
[1728834603563,4.17462289,2449.6,2449.3,2.06578529]
[1728834603750,4.17462289,2449.6,2449.5,0.55]
[1728834604520,4.17462289,2449.6,2449.1,5.56231988]
[1728834604521,0.8141,2449.1,2448.8,0.40989106]
[1728834604777,0.8141,2449.1,2448.8,1.92567635]
[1728834604982,0.09214172,2449.0,2448.8,0.40989106]
[1728834605281,1.66841608,2449.3,2448.8,0.40989106]
[1728834605282,4.0828,2449.3,2448.9,0.8114]
[1728834605476,4.0828,2449.3,2449.1,1.51578529]
[1728834605780,4.0828,2449.3,2449.1,0.55]
[1728834606142,4.93706608,2449.4,2449.1,2.06578529]
[1728834606342,4.75482527,2449.3,2449.1,0.55]
[1728834606679,4.08293,2449.3,2449.1,0.55]
[1728834607327,0.8141,2449.1,2448.9,0.55]
[1728834607490,4.08346,2448.9,2448.8,0.40989106]
[1728834607689,6.41334529,2448.9,2448.8,0.40989106]
[1728834607899,4.89756,2448.9,2448.8,0.40989106]
[1728834608278,7.54844043,2448.9,2448.8,0.40989106]
[1728834608584,11.56532203,2448.9,2448.8,0.40989106]
[1728834608784,9.57591081,2448.9,2448.8,0.40989106]
[1728834608982,10.42944655,2448.9,2448.8,0.40989106]
[1728834609606,9.57551718,2448.9,2448.8,0.40989106]
[1728834609824,4.89756,2448.9,2448.8,0.40989106]
[1728834610584,5.30346,2448.9,2448.8,0.40989106]
[1728834614623,6.99778923,2448.9,2448.8,0.40989106]
[1728834614942,4.0845,2448.3,2448.1,1.12543034]
[1728834615099,4.0845,2448.3,2448.1,0.8196]
[1728834615930,4.0845,2448.3,2448.0,39.70543888]
[1728834616093,4.17631928,2448.2,2448.0,39.70543888]
[1728834616297,0.09166928,2448.2,2448.0,43.67993627]
[1728834616503,8.16918,2448.3,2448.0,43.67993627]
[1728834616720,0.09151418,2448.1,2448.0,43.67993627]
[1728834616923,4.08466,2448.2,2448.0,43.67993627]
[1728834617130,4.17631418,2448.1,2448.0,39.70543888]
[1728834617429,5.00091418,2448.1,2448.0,39.70543888]
[1728834617626,5.00091418,2448.1,2448.0,40.25543888]
[1728834618696,5.40681418,2448.1,2448.0,40.25543888]
[1728834619009,5.40681418,2448.1,2448.0,39.70543888]
[1728834623405,0.49741418,2448.1,2448.0,40.25543888]
[1728834623586,0.49741418,2448.1,2448.0,44.35808714]
[1728834624927,0.4059,2448.1,2448.0,51.96322335]
[1728834625511,0.4059,2448.1,2448.0,52.78162335]
[1728834625921,0.49644693,2448.1,2448.0,52.78162335]
[1728834626319,0.4059,2448.1,2448.0,52.78162335]
[1728834626829,0.49649126,2448.1,2448.0,45.17648714]
[1728834627037,0.4059,2448.1,2448.0,45.17648714]
[1728834627207,0.4059,2448.1,2448.0,40.25543888]
[1728834627721,0.49658728,2448.1,2448.0,40.25543888]
[1728834630050,0.4059,2448.1,2448.0,40.25543888]
[1728834630551,0.49662421,2448.1,2448.0,40.25543888]
[1728834630852,0.4059,2448.1,2448.0,48.44304714]
[1728834631010,0.4059,2448.1,2448.0,52.78162335]
[1728834635725,0.4059,2448.1,2448.0,49.26144714]
[1728834635931,0.4059,2448.1,2448.0,41.07383888]
[1728834636165,0.4059,2448.1,2448.0,40.25543888]
[1728834636464,0.54762178,2448.1,2448.0,40.25543888]
[1728834636966,0.4059,2448.1,2448.0,40.25543888]
[1728834639288,0.54754791,2448.1,2448.0,40.25543888]
[1728834639476,0.54754791,2448.1,2448.0,44.35808714]
[1728834643390,0.54754791,2448.1,2448.0,40.25543888]
[1728834644389,4.63234791,2448.1,2448.0,40.25543888]
[1728834644764,5.44934791,2448.1,2448.0,39.70543888]
[1728834650620,8.44934791,2448.1,2448.0,39.70543888]
[1728834650829,11.94325731,2448.1,2448.0,39.70543888]
[1728834651047,13.22473143,2448.1,2448.0,39.70543888]
[1728834652381,11.94325731,2448.1,2448.0,39.70543888]
[1728834652671,13.22473143,2448.1,2448.0,39.70543888]
[1728834653281,13.22060271,2448.1,2448.0,39.70543888]
[1728834655374,13.21953231,2448.1,2448.0,39.70543888]
[1728834659761,14.98865009,2448.1,2448.0,39.70543888]
[1728834660166,13.28001793,2448.1,2448.0,39.70543888]
[1728834660367,15.40750754,2448.1,2448.0,39.70543888]
[1728834660565,17.86550754,2448.1,2448.0,39.70543888]
[1728834660788,15.73801793,2448.1,2448.0,39.70543888]
[1728834661005,39.24819414,2448.1,2448.0,39.70543888]
[1728834662764,39.24744839,2448.1,2448.0,39.70543888]
[1728834662977,37.85385626,2448.1,2448.0,39.70543888]
[1728834663176,34.97054996,2448.1,2448.0,39.70543888]
[1728834665514,14.98054996,2448.1,2448.0,39.70543888]
[1728834667242,14.97910408,2448.1,2448.0,39.70543888]
[1728834668092,14.97881519,2448.1,2448.0,39.70543888]
[1728834668385,13.27753741,2448.1,2448.0,39.70543888]
[1728834668613,14.97881519,2448.1,2448.0,39.70543888]
[1728834669221,13.21369489,2448.1,2448.0,39.70543888]
[1728834671239,10.96981145,2448.1,2448.0,39.70543888]
[1728834671927,10.96972794,2448.1,2448.0,39.70543888]
[1728834673692,7.15272794,2448.1,2448.0,39.70543888]
[1728834673895,5.30063093,2448.1,2448.0,39.70543888]
[1728834674430,4.63234791,2448.1,2448.0,39.70543888]
[1728834675329,7.63234791,2448.1,2448.0,39.70543888]
[1728834675696,8.30069784,2448.1,2448.0,39.70543888]
[1728834676006,7.63234791,2448.1,2448.0,39.70543888]
[1728834676229,8.30071487,2448.1,2448.0,39.70543888]
[1728834676434,10.31908674,2448.1,2448.0,39.70543888]
[1728834676753,13.26471686,2448.1,2448.0,39.70543888]
[1728834676903,15.02788266,2448.1,2448.0,39.70543888]
[1728834677411,14.35954051,2448.1,2448.0,39.70543888]
[1728834677853,12.59628948,2448.1,2448.0,39.70543888]
[1728834678146,14.35609407,2448.1,2448.0,39.70543888]
[1728834678341,20.33427028,2448.1,2448.0,39.70543888]
[1728834678518,20.75755019,2448.1,2448.0,34.5033232]
[1728834678718,20.75755019,2448.1,2448.0,32.22744786]
[1728834679305,19.04561439,2448.1,2448.0,32.22744786]
[1728834679916,20.69578388,2448.1,2448.0,32.22744786]
[1728834680241,23.24545311,2448.1,2448.0,32.22744786]
[1728834680543,19.04561439,2448.1,2448.0,32.22744786]
[1728834680748,19.03324583,2448.1,2448.0,32.22744786]
[1728834681318,18.62062394,2448.1,2448.0,32.22744786]
[1728834681849,18.62067603,2448.1,2448.0,32.22744786]
[1728834682052,39.98279792,2448.1,2448.0,20.62761548]
[1728834682208,41.63293822,2448.1,2448.0,17.59269428]
[1728834683984,41.63293822,2448.1,2448.0,17.11225874]
[1728834684878,41.63293822,2448.1,2448.0,11.91014306]
[1728834685181,40.64274147,2448.1,2448.0,11.91014306]
[1728834685385,41.61989619,2448.1,2448.0,11.91014306]
[1728834686199,41.61989619,2448.1,2448.0,6.78187213]
[1728834686407,41.61989619,2448.1,2448.0,2.69643576]
[1728834686408,45.0114618,2448.1,2448.0,2.69643576]
[1728834686623,45.0114618,2448.1,2448.0,0.97758963]
[1728834686820,11.27336,2448.0,2447.9,0.039535]
[1728834686983,4.08747,2446.5,2446.4,0.7902]
[1728834687669,4.2265901,2446.5,2446.4,0.7902]
[1728834690878,3.0,2446.4,2445.6,0.7902]
[1728834691081,4.08839,2446.0,2445.8,0.7902]
[1728834691279,0.13792152,2445.9,2445.8,0.55]
[1728834691512,0.13792152,2445.9,2445.8,1.3402]
[1728834696091,4.22639152,2445.9,2445.8,1.3402]
[1728834697176,0.13792152,2445.9,2445.8,1.3402]
[1728834697379,0.13792152,2445.9,2445.8,4.86037621]
[1728834697727,0.13792152,2445.9,2445.8,8.94901621]
[1728834700698,0.13792152,2445.9,2445.8,10.25278183]
[1728834702428,0.4059,2446.0,2445.9,5.40867]
[1728834704117,0.4059,2446.0,2445.9,1.3202]
[1728834706367,0.54392512,2446.0,2445.9,1.3202]
[1728834706566,0.54392512,2446.0,2445.9,5.40867]
[1728834706859,0.4059,2446.0,2445.9,6.84078518]
[1728834707058,0.54392512,2446.0,2445.9,6.84078518]
[1728834707260,0.4059,2446.0,2445.9,6.84078518]
[1728834707569,0.54392512,2446.0,2445.9,6.84078518]
[1728834707751,4.08708,2446.8,2446.4,0.7702]
[1728834707929,4.08732,2446.6,2446.4,4.29037621]
[1728834708637,0.13353529,2446.5,2446.4,4.84037621]
[1728834708838,4.08715,2446.7,2446.4,4.07017621]
[1728834709038,4.08715,2446.7,2446.5,0.7702]
[1728834709364,0.13353529,2446.6,2446.5,1.80423762]
[1728834709781,4.08698,2446.8,2446.6,0.7702]
[1728834713344,4.08682,2446.9,2446.6,4.29037621]
[1728834713539,8.17375,2446.9,2446.6,4.29037621]
[1728834713864,4.08706,2446.8,2446.6,1.75238885]
[1728834714358,4.08713,2446.7,2446.6,2.30238885]
[1728834715536,4.22117586,2446.7,2446.6,2.30238885]
[1728834718860,4.22117586,2446.7,2446.6,0.55]
[1728834719061,4.0873,2446.6,2446.5,0.55]
[1728834719662,4.22136806,2446.6,2446.5,0.55]
[1728834720006,4.22136806,2446.6,2446.5,2.06882868]
[1728834720220,0.13406806,2446.6,2446.5,2.06882868]
[1728834720574,0.13406806,2446.6,2446.5,2.35663155]
[1728834722415,4.22136806,2446.6,2446.5,2.35663155]
[1728834722619,0.13406806,2446.6,2446.5,2.35663155]
[1728834725230,4.22136806,2446.6,2446.5,2.35663155]
[1728834731106,4.08763,2446.4,2446.3,0.55]
[1728834731303,4.08763,2446.4,2446.3,2.06882868]
[1728834731722,4.08797,2446.2,2446.1,1.16398065]
[1728834731921,4.08797,2446.2,2446.1,0.85767723]
[1728834732100,4.22203067,2446.2,2446.1,0.85767723]
[1728834732638,4.22203067,2446.2,2446.1,2.37650591]
[1728834733136,0.13406067,2446.2,2446.1,2.92650591]
[1728834733293,0.13406067,2446.2,2446.1,4.22185889]
[1728834733496,4.08744,2446.6,2446.4,0.55]
[1728834733695,4.08744,2446.6,2446.5,1.51882868]
[1728834733916,4.08744,2446.6,2446.5,3.03765736]
[1728834734196,4.08744,2446.6,2446.5,1.51882868]
[1728834734391,4.08744,2446.6,2446.5,3.03765736]
[1728834734636,7.31,2446.8,2446.5,3.4781731]
[1728834734798,4.08674,2447.0,2446.7,2.06882868]
[1728834735002,4.08674,2447.0,2446.9,2.33632868]
[1728834735207,4.93565422,2447.1,2446.9,2.33632868]
[1728834735446,4.93565422,2447.1,2447.0,1.51882868]
[1728834735807,4.08663,2447.0,2446.9,4.34164517]
[1728834736312,4.22070542,2447.0,2446.9,4.34164517]
[1728834740974,4.22070542,2447.0,2446.7,4.82534517]
[1728834741154,4.08692,2446.9,2446.7,4.82534517]
[1728834741544,0.13407542,2446.8,2446.7,4.82534517]
[1728834741771,4.22104542,2446.8,2446.7,4.82534517]
[1728834744352,0.13407542,2446.8,2446.7,4.82534517]
[1728834744579,0.13407542,2446.8,2446.7,5.38255293]
[1728834745069,0.13407542,2446.8,2446.7,5.6887696]
[1728834745245,0.13407542,2446.8,2446.7,5.38255293]
[1728834745774,0.13407542,2446.8,2446.7,5.68886143]
[1728834745978,4.22104542,2446.8,2446.7,3.52414517]
[1728834746148,4.08713,2446.7,2446.6,0.8563085]
[1728834746574,4.22131639,2446.7,2446.6,0.8563085]
[1728834747495,4.22131639,2446.7,2446.6,0.3063085]
[1728834747693,0.13418639,2446.7,2446.6,0.3063085]
[1728834748054,4.08697,2446.8,2446.6,0.3063085]
[1728834748278,4.08676,2447.0,2446.8,1.3012]
[1728834748601,4.08676,2447.0,2446.9,3.52414517]
[1728834751096,4.22093899,2447.0,2446.9,3.52414517]
[1728834752005,4.0868,2446.9,2446.8,1.3012]
[1728834752210,4.0868,2446.9,2446.8,1.60760902]
[1728834752565,4.0868,2446.9,2446.8,1.91406636]
[1728834752771,4.22097899,2446.9,2446.8,1.91406636]
[1728834753308,4.22097899,2446.9,2446.8,1.60765734]
[1728834756927,4.22097899,2446.9,2446.8,1.60768056]
[1728834757797,4.22097899,2446.9,2446.8,3.12591531]
[1728834757997,4.22097899,2446.9,2446.8,2.81943475]
[1728834758198,4.22097899,2446.9,2446.8,3.12591531]
[1728834758409,4.22097899,2446.9,2446.8,2.81943475]
[1728834758607,4.22097899,2446.9,2446.8,3.12591531]
[1728834758807,4.22097899,2446.9,2446.8,2.81943475]
[1728834759009,4.22097899,2446.9,2446.8,3.12590732]
[1728834759287,4.22097899,2446.9,2446.8,2.81943475]
[1728834759799,4.22097899,2446.9,2446.8,2.06823475]
[1728834760393,5.01967899,2446.9,2446.8,1.51823475]
[1728834760724,5.93032289,2446.9,2446.8,1.51823475]
[1728834762228,5.01967899,2446.9,2446.8,1.51823475]
[1728834763795,4.22097899,2446.9,2446.8,1.51823475]
[1728834766818,4.22097899,2446.9,2446.8,2.28673475]
[1728834767023,4.22097899,2446.9,2446.8,2.59323252]
[1728834767196,4.22097899,2446.9,2446.8,2.28673475]
[1728834767599,4.22097899,2446.9,2446.8,2.59322303]
[1728834768312,4.22097899,2446.9,2446.8,2.28673475]
[1728834768737,4.22097899,2446.9,2446.8,2.59322303]
[1728834768951,4.22097899,2446.9,2446.8,2.28673475]
[1728834769249,4.22097899,2446.9,2446.8,2.59322303]
[1728834769451,4.22097899,2446.9,2446.8,2.28673475]
[1728834769659,0.13417899,2446.9,2446.8,3.09605705]
[1728834769956,4.08647,2447.1,2446.9,0.55]
[1728834770150,4.88496,2447.3,2447.0,1.51823475]
[1728834770358,0.84917422,2447.4,2447.2,3.0364695]
[1728834770557,4.93487422,2447.6,2447.3,2.3718817]
[1728834770853,4.0857,2447.6,2447.5,2.28673475]
[1728834771960,4.0857,2447.6,2447.5,4.29079921]
[1728834773650,4.0857,2447.6,2447.5,3.52229921]
[1728834780998,4.08596,2447.4,2447.3,0.55]
[1728834781185,4.08598,2447.4,2447.2,4.07229921]
[1728834781333,4.21701528,2447.4,2447.2,4.07229921]
[1728834781655,4.08613,2447.3,2447.2,4.07229921]
[1728834782175,4.08613,2447.3,2447.1,0.55]
[1728834782176,4.21716528,2447.3,2447.1,0.55]
[1728834782332,4.08644,2447.2,2447.0,3.93145097]
[1728834782529,4.08646,2447.1,2447.0,3.93145097]
[1728834782733,4.08646,2447.1,2447.0,3.52229921]
[1728834782932,0.13099082,2447.1,2447.0,3.52229921]
[1728834783229,4.08637,2447.2,2447.0,3.52229921]
[1728834783536,4.21745082,2447.1,2447.0,4.07229921]
[1728834785478,0.13099082,2447.1,2447.0,4.07229921]
[1728834785653,4.08633,2447.2,2447.0,4.62925421]
[1728834785972,4.08633,2447.2,2447.1,3.52229921]
[1728834787138,4.08615,2447.3,2447.1,4.07229921]
[1728834787342,4.08567,2447.6,2447.3,0.55]
[1728834787578,11.39541,2447.8,2447.5,3.52229921]
[1728834787748,4.08541,2447.8,2447.7,3.52229921]
[1728834790751,8.17036,2447.9,2447.7,3.52229921]
[1728834791076,4.08514,2447.9,2447.7,3.52229921]
[1728834791390,4.0853,2447.8,2447.7,4.07229921]
[1728834791615,4.08514,2447.9,2447.7,4.07229921]
[1728834792194,8.17037,2447.9,2447.7,4.07229921]
[1728834792494,4.08496,2448.0,2447.7,4.60353081]
[1728834792657,4.08496,2448.0,2447.9,3.52229921]
[1728834793496,4.08489,2448.1,2447.9,4.83999921]
[1728834793699,4.08496,2448.0,2447.9,4.83999921]
[1728834795166,8.16985,2448.1,2447.9,4.83999921]
[1728834796069,4.0848,2448.1,2448.0,0.55]
[1728834797966,4.08464,2448.2,2448.0,0.55]
[1728834798167,4.08464,2448.2,2448.1,3.52229921]
[1728834800775,4.0848,2448.1,2448.0,0.55]
[1728834801465,4.08464,2448.2,2448.0,0.55]
[1728834801667,4.08464,2448.2,2448.1,3.52229921]
[1728834803268,4.0848,2448.1,2448.0,0.55]
[1728834803598,4.08496,2448.0,2447.9,3.52229921]
[1728834804501,4.08496,2448.0,2447.7,3.52229921]
[1728834804502,4.08529,2447.9,2447.7,3.52229921]
[1728834804803,4.08557,2447.7,2447.5,4.72131604]
[1728834804989,4.08563,2447.6,2447.5,3.94091604]
[1728834805571,4.08563,2447.6,2447.3,0.7804]
[1728834805572,4.08581,2447.5,2447.3,4.30269921]
[1728834805886,4.08581,2447.5,2447.3,5.20162067]
[1728834806090,4.08581,2447.5,2447.1,4.68651542]
[1728834806091,4.08627,2447.3,2447.1,4.90276463]
[1728834806289,4.0863,2447.2,2446.9,4.30269921]
[1728834806867,4.86417,2447.3,2446.9,4.30269921]
[1728834807213,4.21739453,2447.2,2447.1,3.52229921]
[1728834807510,4.21739453,2447.2,2447.1,3.93740697]
[1728834807665,4.21739453,2447.2,2447.1,4.07229921]
[1728834807871,4.21739453,2447.2,2447.0,0.55]
[1728834808103,4.08646,2447.1,2446.9,3.52229921]
[1728834808497,0.13109453,2447.0,2446.9,3.52229921]
[1728834809369,0.13109453,2447.0,2446.9,4.07229921]
[1728834809705,0.13109453,2447.0,2446.9,4.55756913]
[1728834810993,0.13109453,2447.0,2446.9,4.97443877]
[1728834812413,4.08647,2447.1,2446.9,4.97443877]
[1728834812573,0.13109453,2447.0,2446.9,4.97443877]
[1728834813310,0.13109453,2447.0,2446.9,4.07229921]
[1728834813311,4.21772453,2447.0,2446.9,4.07229921]
[1728834814721,0.13109453,2447.0,2446.9,4.07229921]
[1728834815524,8.17271,2447.2,2446.9,4.07229921]
[1728834815726,0.13107971,2447.0,2446.9,4.07229921]
[1728834815926,4.08663,2447.0,2446.9,4.07229921]
[1728834816087,4.21770971,2447.0,2446.9,4.07229921]
[1728834820336,0.13107971,2447.0,2446.9,4.07229921]